[Event "36th European Club Cup 2021"]
[Site "Struga"]
[Date "2021.09.21"]
[Round "4.45"]
[White "Risteski, Emil"]
[Black "Petursson, Margeir"]
[Result "0-1"]
[ECO "B27"]
[WhiteElo "2320"]
[BlackElo "2442"]
[Annotator "NA"]
[PlyCount "92"]
[EventDate "2021.09.18"]
[EventType "team-tourn"]
[EventCountry "MKD"]
[SourceTitle "playchess.com"]
[Source "ChessBase"]
[SourceQuality "1"]
[TimeControl "40/5400+30:1800+30"]

1. e4 {[%emt 0:00:12]} c5 {[%emt 0:00:05]} 2. Nf3 {[%emt 0:00:06]} g6 {[%emt 0:
00:04]} 3. c3 {[%emt 0:00:06]} d5 {[%emt 0:00:09]} 4. e5 {[%emt 0:00:05]} a6 {
[%emt 0:00:10]} 5. h3 {[%emt 0:05:01]} Nc6 {[%emt 0:03:50]} 6. d4 {[%emt 0:00:
36]} Bg7 {[%emt 0:01:43]} 7. Be2 {[%emt 0:11:07]} f6 {[%emt 0:00:26]} 8. exf6 {
[%emt 0:04:10]} Nxf6 {[%emt 0:02:57]} 9. dxc5 {[%emt 0:03:37]} O-O {[%emt 0:00:
25]} 10. O-O {[%emt 0:01:59]} e5 {[%emt 0:02:53]} 11. Na3 {[%emt 0:07:55]} h6 {
[%emt 0:06:12]} 12. Nc2 {[%emt 0:02:47]} Be6 {[%emt 0:09:45]} 13. Nh2 {[%emt 0:
11:22]} Kh7 {[%emt 0:03:40]} 14. Be3 {[%emt 0:07:50]} Qd7 {[%emt 0:03:49]} 15.
Bd3 {[%emt 0:03:58]} Rad8 {[%emt 0:07:10]} 16. f4 {[%emt 0:04:18]} d4 {[%emt 0:
02:07]} 17. cxd4 {[%emt 0:00:57]} e4 {[%emt 0:05:08]} 18. Be2 {[%emt 0:01:19]}
Nd5 {[%emt 0:00:27]} 19. Kh1 {[%emt 0:05:36]} Nxe3 {[%emt 0:10:38]} 20. Nxe3 {
[%emt 0:01:01]} Qxd4 {[%emt 0:01:27]} 21. Qxd4 {[%emt 0:00:50]} Bxd4 {[%emt 0:
00:23]} 22. Nc4 {[%emt 0:00:06]} Bxc5 {[%emt 0:00:26]} 23. b3 {[%emt 0:05:55]}
Nd4 {[%emt 0:09:40]} 24. Bg4 {[%emt 0:00:56]} Bxc4 {[%emt 0:01:54]} 25. Rfc1 {
[%emt 0:00:02]} b5 {[%emt 0:03:30]} 26. bxc4 {[%emt 0:00:10]} b4 {[%emt 0:00:
10]} 27. g3 {[%emt 0:01:44]} h5 {[%emt 0:02:15]} 28. Bd1 {[%emt 0:00:06]} e3 {
[%emt 0:01:05]} 29. Kg2 {[%emt 0:00:16]} h4 {[%emt 0:04:41]} 30. Nf3 {[%emt 0:
02:08]} Nxf3 {[%emt 0:01:03]} 31. Kxf3 {[%emt 0:00:17]} hxg3 {[%emt 0:00:42]}
32. Be2 {[%emt 0:00:32]} g5 {[%emt 0:01:56]} 33. Kxg3 {[%emt 0:00:43]} Rxf4 {
[%emt 0:03:16]} 34. Rd1 {[%emt 0:00:22]} Rd2 {[%emt 0:01:09]} 35. Rxd2 {
[%emt 0:01:08]} exd2 {[%emt 0:00:06]} 36. Rd1 {[%emt 0:00:10]} Rd4 {[%emt 0:00:
38]} 37. Bg4 {[%emt 0:02:14]} Bd6+ {[%emt 0:03:03]} 38. Kf2 {[%emt 0:00:54]}
Bf4 {[%emt 0:00:31]} 39. Be2 {[%emt 0:02:02]} a5 {[%emt 0:02:28]} 40. c5 {
[%emt 0:00:00]} Rd5 {[%emt 0:00:00]} 41. c6 {[%emt 0:00:50]} Rc5 {[%emt 0:01:
05]} 42. Bf3 {[%emt 0:00:16]} Kg7 {[%emt 0:00:17]} 43. Ke2 {[%emt 0:01:44]} Kf6
{[%emt 0:01:26]} 44. Be4 {[%emt 0:00:22]} Ke5 {[%emt 0:00:43]} 45. Bb1 {
[%emt 0:00:26]} Rxc6 {[%emt 0:00:41]} 46. Bd3 {[%emt 0:00:03]} Rc3 {[%emt 0:00:
50]} 0-1

[Event "36th European Club Cup 2021"]
[Site "Struga"]
[Date "2021.09.21"]
[Round "4.46"]
[White "Johannesson, Ingvar Thor"]
[Black "Podlesnik, Bogdan"]
[Result "1/2-1/2"]
[ECO "A46"]
[WhiteElo "2346"]
[BlackElo "2327"]
[Annotator "NA"]
[PlyCount "21"]
[EventDate "2021.09.18"]
[EventType "team-tourn"]
[EventCountry "MKD"]
[SourceTitle "playchess.com"]
[Source "ChessBase"]
[SourceQuality "1"]
[TimeControl "40/5400+30:1800+30"]

1. d4 {[%emt 0:00:30]} Nf6 {[%emt 0:00:27]} 2. Nf3 {[%emt 0:00:26]} e6 {
[%emt 0:00:35]} 3. Bf4 {[%emt 0:05:10]} c5 {[%emt 0:00:07]} 4. e3 {[%emt 0:00:
10]} Qb6 {[%emt 0:00:06]} 5. Na3 {[%emt 0:00:10]} Qxb2 {[%emt 0:00:08]} 6. Nb5
{[%emt 0:00:14]} Nd5 {[%emt 0:00:08]} 7. Rb1 {[%emt 0:03:45]} Qxa2 {[%emt 0:00:
12]} 8. Ra1 {[%emt 0:01:14]} Qb2 {[%emt 0:00:06]} 9. Rb1 {[%emt 0:01:07]} Qa2 {
[%emt 0:00:14]} 10. Ra1 {[%emt 0:00:20]} Qb2 {[%emt 0:00:10]} 11. Rb1 {[%emt 0:
02:18]} 1/2-1/2

[Event "36th European Club Cup 2021"]
[Site "Struga"]
[Date "2021.09.21"]
[Round "4.47"]
[White "Zlatkov, Anton"]
[Black "Mai, Alexander Oliver"]
[Result "1-0"]
[ECO "B51"]
[WhiteElo "2132"]
[BlackElo "2042"]
[Annotator "NA"]
[PlyCount "91"]
[EventDate "2021.09.18"]
[EventType "team-tourn"]
[EventCountry "MKD"]
[SourceTitle "playchess.com"]
[Source "ChessBase"]
[SourceQuality "1"]
[TimeControl "40/5400+30:1800+30"]

1. e4 {[%emt 0:00:03]} c5 {[%emt 0:00:05]} 2. Nf3 {[%emt 0:00:05]} d6 {[%emt 0:
00:04]} 3. Bb5+ {[%emt 0:00:07]} Nd7 {[%emt 0:00:09]} 4. O-O {[%emt 0:00:11]}
a6 {[%emt 0:00:16]} 5. Bd3 {[%emt 0:00:08]} Ngf6 {[%emt 0:00:16]} 6. Re1 {
[%emt 0:00:29]} e6 {[%emt 0:01:18]} 7. c3 {[%emt 0:00:26]} b5 {[%emt 0:00:48]}
8. a4 {[%emt 0:00:26]} Bb7 {[%emt 0:00:17]} 9. axb5 {[%emt 0:03:27]} axb5 {
[%emt 0:00:06]} 10. Rxa8 {[%emt 0:01:00]} Qxa8 {[%emt 0:00:17]} 11. Na3 {
[%emt 0:01:49]} Bxe4 {[%emt 0:04:53]} 12. Bxe4 {[%emt 0:03:48]} Nxe4 {[%emt 0:
00:06]} 13. Nxb5 {[%emt 0:00:07]} Qc6 {[%emt 0:10:55]} 14. Qa4 {[%emt 0:09:15]}
Nef6 {[%emt 0:02:06]} 15. d4 {[%emt 0:06:01]} Be7 {[%emt 0:02:29]} 16. c4 {
[%emt 0:03:12]} cxd4 {[%emt 0:03:45]} 17. Nfxd4 {[%emt 0:00:24]} Qb7 {[%emt 0:
03:47]} 18. Nf5 {[%emt 0:05:52]} Nc5 {[%emt 0:20:04]} 19. Nbxd6+ {[%emt 0:18:
31]} Kf8 {[%emt 0:00:47]} 20. Nxb7 {[%emt 0:00:08]} Nxa4 {[%emt 0:00:06]} 21.
Nxe7 {[%emt 0:07:54]} Kxe7 {[%emt 0:00:12]} 22. b3 {[%emt 0:01:13]} Nb6 {
[%emt 0:01:43]} 23. Rd1 {[%emt 0:00:25]} Ra8 {[%emt 0:01:42]} 24. Bd2 {[%emt 0:
06:39]} Kd7 {[%emt 0:03:32]} 25. Bf4+ {[%emt 0:04:02]} Ke8 {[%emt 0:03:08]} 26.
Be3 {[%emt 0:00:30]} Nbd7 {[%emt 0:00:32]} 27. b4 {[%emt 0:04:56]} Rb8 {
[%emt 0:03:27]} 28. Nd6+ {[%emt 0:00:32]} Ke7 {[%emt 0:00:15]} 29. b5 {[%emt 0:
00:41]} Nd5 {[%emt 0:09:05]} 30. Nf5+ {[%emt 0:03:42]} Kf6 {[%emt 0:00:18]} 31.
Nd4 {[%emt 0:00:18]} Nxe3 {[%emt 0:03:10]} 32. fxe3 {[%emt 0:00:02]} Nc5 {
[%emt 0:03:18]} 33. Nc6 {[%emt 0:00:29]} Rb7 {[%emt 0:03:29]} 34. Rf1+ {
[%emt 0:00:19]} Kg5 {[%emt 0:00:31]} 35. Nd8 {[%emt 0:03:50]} Rd7 {[%emt 0:01:
31]} 36. Nxf7+ {[%emt 0:00:08]} Kh5 {[%emt 0:00:12]} 37. Ne5 {[%emt 0:05:05]}
Rd2 {[%emt 0:00:08]} 38. g4+ {[%emt 0:02:30]} Kh6 {[%emt 0:00:12]} 39. Rf2 {
[%emt 0:04:10]} Rd1+ {[%emt 0:00:54]} 40. Rf1 {[%emt 0:00:00]} Rd2 {[%emt 0:00:
00]} 41. h4 {[%emt 0:03:15]} g6 {[%emt 0:01:30]} 42. Rf7 {[%emt 0:01:03]} Rd1+
{[%emt 0:01:03]} 43. Kg2 {[%emt 0:00:13]} Rd2+ {[%emt 0:00:13]} 44. Kf3 {
[%emt 0:00:33]} g5 {[%emt 0:00:17]} 45. Rf6+ {[%emt 0:00:55]} Kg7 {[%emt 0:00:
05]} 46. hxg5 {[%emt 0:01:04]} 1-0

[Event "36th European Club Cup 2021"]
[Site "Struga"]
[Date "2021.09.21"]
[Round "4.48"]
[White "Jonsson, Gauti Pall"]
[Black "Andonovski, Ljubisa"]
[Result "0-1"]
[ECO "B23"]
[WhiteElo "2053"]
[BlackElo "2252"]
[Annotator "NA"]
[PlyCount "50"]
[EventDate "2021.09.18"]
[EventType "team-tourn"]
[EventCountry "MKD"]
[SourceTitle "playchess.com"]
[Source "ChessBase"]
[SourceQuality "1"]
[TimeControl "40/5400+30:1800+30"]

1. e4 {[%emt 0:00:21]} c5 {[%emt 0:00:24]} 2. Nc3 {[%emt 0:00:56]} Nc6 {
[%emt 0:00:19]} 3. Bb5 {[%emt 0:00:34]} Nd4 {[%emt 0:00:19]} 4. Bc4 {[%emt 0:
00:36]} a6 {[%emt 0:02:02]} 5. Nge2 {[%emt 0:02:30]} b5 {[%emt 0:01:29]} 6. Bd5
{[%emt 0:01:14]} Rb8 {[%emt 0:00:19]} 7. Nxd4 {[%emt 0:04:22]} cxd4 {[%emt 0:
03:10]} 8. Ne2 {[%emt 0:03:28]} e6 {[%emt 0:00:36]} 9. Bb3 {[%emt 0:00:16]} Bb7
{[%emt 0:01:53]} 10. d3 {[%emt 0:01:34]} Bc5 {[%emt 0:00:20]} 11. O-O {[%emt 0:
04:07]} Ne7 {[%emt 0:00:31]} 12. Ng3 {[%emt 0:04:25]} O-O {[%emt 0:07:05]} 13.
Qh5 {[%emt 0:05:54]} Rc8 {[%emt 0:03:41]} 14. f4 {[%emt 0:02:27]} g6 {[%emt 0:
03:54]} 15. Qf3 {[%emt 0:13:39]} f5 {[%emt 0:02:01]} 16. h4 {[%emt 0:00:59]}
Kh8 {[%emt 0:02:29]} 17. Bd2 {[%emt 0:04:08]} fxe4 {[%emt 0:01:24]} 18. Nxe4 {
[%emt 0:02:19]} Nf5 {[%emt 0:00:15]} 19. g3 {[%emt 0:01:48]} e5 {[%emt 0:22:16]
} 20. Qg4 {[%emt 0:05:32]} Ne3 {[%emt 0:19:52]} 21. Bxe3 {[%emt 0:00:52]} dxe3
{[%emt 0:00:10]} 22. Nxc5 {[%emt 0:02:36]} Rxc5 {[%emt 0:01:01]} 23. Rae1 {
[%emt 0:04:17]} Qb6 {[%emt 0:04:19]} 24. fxe5 {[%emt 0:02:11]} Rf2 {[%emt 0:01:
14]} 25. Qd4 {[%emt 0:06:47]} Rcxc2 {[%emt 0:01:49]} 0-1

[Event "36th European Club Cup 2021"]
[Site "Struga"]
[Date "2021.09.21"]
[Round "4.49"]
[White "Cornette, Matthieu"]
[Black "Gukesh D"]
[Result "1/2-1/2"]
[ECO "B15"]
[WhiteElo "2578"]
[BlackElo "2599"]
[Annotator "ChessBase"]
[PlyCount "61"]
[EventDate "2021.09.18"]
[EventType "team-tourn"]
[EventCountry "MKD"]
[SourceTitle "playchess.com"]
[Source "ChessBase"]
[SourceQuality "1"]
[TimeControl "40/5400+30:1800+30"]

1. e4 {[%emt 0:00:05]} c6 {[%emt 0:01:35]} 2. d4 {[%emt 0:00:38]} d5 {[%emt 0:
00:07]} 3. Nc3 {[%emt 0:00:39]} dxe4 {[%emt 0:01:01]} 4. Nxe4 {[%emt 0:00:06]}
Nf6 {[%emt 0:00:19]} 5. Nxf6+ {[%emt 0:00:22]} exf6 {[%emt 0:00:08]} 6. c3 {
[%emt 0:00:10]} Bd6 {[%emt 0:00:09]} 7. Bd3 {[%emt 0:00:28]} O-O {[%emt 0:02:
33]} 8. Qc2 {[%emt 0:00:12]} Re8+ {[%emt 0:00:07]} 9. Ne2 {[%emt 0:00:07]} h5 {
[%emt 0:01:06]} 10. O-O {[%emt 0:01:58]} h4 {[%emt 0:00:09]} 11. h3 {[%emt 0:
00:40]} Nd7 {[%emt 0:01:04]} 12. Bd2 {[%emt 0:01:12]} Nf8 {[%emt 0:03:01]} 13.
Rae1 {[%emt 0:00:30]} Ng6 {[%emt 0:10:26]} 14. f4 {[%emt 0:08:05]} c5 {[%emt 0:
15:59]} 15. d5 {[%emt 0:09:54]} Bd7 {[%emt 0:09:39]} 16. c4 {[%emt 0:02:40]}
Qc8 {[%emt 0:04:19]} 17. Rf3 {[%emt 0:04:36]} b5 {[%emt 0:26:40]} 18. cxb5 {
[%emt 0:17:22]} c4 {[%emt 0:00:57]} 19. Qxc4 {[%emt 0:01:31]} Qb7 {[%emt 0:00:
19]} 20. Nc3 {[%emt 0:05:11]} Rxe1+ {[%emt 0:09:39]} 21. Bxe1 {[%emt 0:00:05]}
a6 {[%emt 0:00:25]} 22. bxa6 {[%emt 0:21:19]} Qxb2 {[%emt 0:00:09]} 23. Ne2 {
[%emt 0:06:40]} Ne7 {[%emt 0:06:37]} 24. Bc3 {[%emt 0:03:25]} Qb6+ {[%emt 0:00:
13]} 25. Bd4 {[%emt 0:02:57]} Qa5 {[%emt 0:00:14]} 26. a7 {[%emt 0:01:04]} Nc8
{[%emt 0:03:34]} 27. Qa6 {[%emt 0:06:30]} Qxd5 {[%emt 0:00:46]} 28. Bc4 {
[%emt 0:04:15]} Qc6 {[%emt 0:01:23]} 29. Qxc6 {[%emt 0:01:17]} Bxc6 {[%emt 0:
00:01]} 30. Rd3 {[%emt 0:00:20]} Bf8 {[%emt 0:00:50]} 31. Rc3 {[%emt 0:00:56]}
1/2-1/2

[Event "36th European Club Cup 2021"]
[Site "Struga"]
[Date "2021.09.21"]
[Round "4.50"]
[White "Dudin, Gleb"]
[Black "Delchev, Aleksander"]
[Result "1/2-1/2"]
[ECO "D45"]
[WhiteElo "2434"]
[BlackElo "2500"]
[Annotator "ChessBase"]
[PlyCount "61"]
[EventDate "2021.09.18"]
[EventType "team-tourn"]
[EventCountry "MKD"]
[SourceTitle "playchess.com"]
[Source "ChessBase"]
[SourceQuality "1"]
[TimeControl "40/5400+30:1800+30"]

1. c4 {[%emt 0:00:15]} c6 {[%emt 0:00:17]} 2. d4 {[%emt 0:01:52]} d5 {[%emt 0:
00:05]} 3. Nc3 {[%emt 0:00:07]} Nf6 {[%emt 0:00:05]} 4. e3 {[%emt 0:00:10]} e6
{[%emt 0:00:06]} 5. Nf3 {[%emt 0:01:19]} Nbd7 {[%emt 0:00:04]} 6. Qc2 {[%emt 0:
00:10]} Bd6 {[%emt 0:00:04]} 7. b3 {[%emt 0:02:19]} O-O {[%emt 0:00:18]} 8. Be2
{[%emt 0:00:50]} b6 {[%emt 0:02:51]} 9. Bb2 {[%emt 0:00:28]} Bb7 {[%emt 0:00:
06]} 10. O-O {[%emt 0:00:07]} Qe7 {[%emt 0:00:04]} 11. Rad1 {[%emt 0:05:25]}
Rad8 {[%emt 0:06:40]} 12. Rfe1 {[%emt 0:14:37]} Rfe8 {[%emt 1:25:50]} 13. Qb1 {
[%emt 0:01:56]} Bb8 {[%emt 0:00:00]} 14. Qa1 {[%emt 0:08:35]} Ne4 {[%emt 0:00:
00]} 15. Nxe4 {[%emt 0:13:23]} dxe4 {[%emt 0:00:00]} 16. Ne5 {[%emt 0:03:22]}
Nxe5 {[%emt 0:00:00]} 17. dxe5 {[%emt 0:00:08]} c5 {[%emt 0:00:00]} 18. Rxd8 {
[%emt 0:00:49]} Rxd8 {[%emt 0:00:00]} 19. Rd1 {[%emt 0:00:09]} Bc6 {[%emt 0:00:
00]} 20. Rxd8+ {[%emt 0:00:48]} Qxd8 {[%emt 0:00:00]} 21. Qd1 {[%emt 0:00:10]}
Qxd1+ {[%emt 0:00:00]} 22. Bxd1 {[%emt 0:00:02]} Bc7 {[%emt 0:00:00]} 23. Bc2 {
[%emt 0:00:09]} h5 {[%emt 0:00:00]} 24. h4 {[%emt 0:00:18]} Bd8 {[%emt 0:00:00]
} 25. Bd1 {[%emt 0:01:09]} g6 {[%emt 0:00:00]} 26. g3 {[%emt 0:00:07]} a5 {
[%emt 0:00:00]} 27. a4 {[%emt 0:00:16]} Kf8 {[%emt 0:00:00]} 28. Kf1 {[%emt 0:
00:05]} Ke7 {[%emt 0:00:00]} 29. Bc3 {[%emt 0:00:07]} Bc7 {[%emt 0:00:00]} 30.
Bc2 {[%emt 0:00:09]} Ke8 {[%emt 0:00:00]} 31. Ke1 {[%emt 0:00:06]} 1/2-1/2

[Event "36th European Club Cup 2021"]
[Site "Struga"]
[Date "2021.09.21"]
[Round "4.51"]
[White "Vaisser, Anatoly"]
[Black "Boskovic, Drasko"]
[Result "1/2-1/2"]
[ECO "D87"]
[WhiteElo "2494"]
[BlackElo "2457"]
[Annotator "ChessBase"]
[PlyCount "111"]
[EventDate "2021.09.18"]
[EventType "team-tourn"]
[EventCountry "MKD"]
[SourceTitle "playchess.com"]
[Source "ChessBase"]
[SourceQuality "1"]
[TimeControl "40/5400+30:1800+30"]

1. d4 {[%emt 0:00:08]} Nf6 {[%emt 0:00:06]} 2. c4 {[%emt 0:00:09]} g6 {[%emt 0:
00:07]} 3. Nc3 {[%emt 0:00:08]} d5 {[%emt 1:31:47]} 4. cxd5 {[%emt 0:00:20]}
Nxd5 {[%emt 0:00:00]} 5. e4 {[%emt 0:00:07]} Nxc3 {[%emt 0:00:00]} 6. bxc3 {
[%emt 0:00:06]} Bg7 {[%emt 0:00:00]} 7. Bc4 {[%emt 0:00:24]} c5 {[%emt 0:00:00]
} 8. Ne2 {[%emt 0:00:14]} Nc6 {[%emt 0:00:00]} 9. Be3 {[%emt 0:00:16]} O-O {
[%emt 0:00:00]} 10. O-O {[%emt 0:01:16]} b6 {[%emt 0:00:00]} 11. Qd2 {[%emt 0:
02:17]} Bb7 {[%emt 0:00:00]} 12. Rac1 {[%emt 0:05:21]} e6 {[%emt 0:00:00]} 13.
Rfd1 {[%emt 0:06:46]} Rc8 {[%emt 0:00:00]} 14. Bh6 {[%emt 0:01:57]} Na5 {
[%emt 0:00:00]} 15. Bd3 {[%emt 0:00:17]} cxd4 {[%emt 0:00:00]} 16. Bxg7 {
[%emt 0:00:07]} Kxg7 {[%emt 0:00:00]} 17. cxd4 {[%emt 0:00:09]} Qe7 {[%emt 0:
00:00]} 18. Qf4 {[%emt 0:11:21]} Nc6 {[%emt 0:00:00]} 19. d5 {[%emt 0:09:11]}
exd5 {[%emt 0:00:00]} 20. exd5 {[%emt 0:00:05]} Ne5 {[%emt 0:00:00]} 21. Nc3 {
[%emt 0:11:19]} Nxd3 {[%emt 0:00:00]} 22. Rxd3 {[%emt 0:00:25]} Qf6 {[%emt 0:
00:00]} 23. Qd2 {[%emt 0:00:35]} Rfe8 {[%emt 0:00:00]} 24. d6 {[%emt 0:12:41]}
Rcd8 {[%emt 0:00:00]} 25. Rd4 {[%emt 0:08:12]} Re5 {[%emt 0:00:00]} 26. h4 {
[%emt 0:03:46]} g5 {[%emt 0:00:00]} 27. Nd1 {[%emt 0:08:42]} gxh4 {[%emt 0:00:
00]} 28. Rc7 {[%emt 0:00:16]} Be4 {[%emt 0:00:00]} 29. Ne3 {[%emt 0:02:50]} h5
{[%emt 0:00:00]} 30. d7 {[%emt 0:02:55]} Bf5 {[%emt 0:09:22]} 31. Nxf5+ {
[%emt 0:01:29]} Qxf5 {[%emt 0:00:27]} 32. Qc3 {[%emt 0:03:44]} Kg6 {[%emt 0:04:
09]} 33. Rc8 {[%emt 0:02:48]} Rxd7 {[%emt 0:00:13]} 34. Qc6+ {[%emt 0:00:22]}
Kg7 {[%emt 0:00:48]} 35. Qxd7 {[%emt 0:00:58]} Re1+ {[%emt 0:00:12]} 36. Kh2 {
[%emt 0:00:07]} Qxf2 {[%emt 0:00:07]} 37. Rg4+ {[%emt 0:01:51]} hxg4 {[%emt 0:
00:18]} 38. Qxg4+ {[%emt 0:00:09]} Kf6 {[%emt 0:00:13]} 39. Rc6+ {[%emt 0:00:
00]} Ke5 {[%emt 0:00:00]} 40. Qg5+ {[%emt 0:00:00]} Kd4 {[%emt 0:00:00]} 41.
Qd8+ {[%emt 0:06:19]} Ke4 {[%emt 0:13:51]} 42. Qe7+ {[%emt 0:05:37]} Kd3 {
[%emt 0:05:31]} 43. Qd7+ {[%emt 0:13:00]} Ke3 {[%emt 0:04:20]} 44. Rc3+ {
[%emt 0:02:05]} Ke4 {[%emt 0:00:06]} 45. Qa4+ {[%emt 0:03:57]} Ke5 {[%emt 0:01:
47]} 46. Qb5+ {[%emt 0:00:52]} Kd6 {[%emt 0:02:09]} 47. Rc6+ {[%emt 0:03:15]}
Ke7 {[%emt 0:00:09]} 48. Qg5+ {[%emt 0:00:43]} f6 {[%emt 0:07:29]} 49. Qg7+ {
[%emt 0:00:40]} Kd8 {[%emt 0:00:02]} 50. Qf8+ {[%emt 0:02:42]} Kd7 {[%emt 0:00:
03]} 51. Rd6+ {[%emt 0:00:10]} Kc7 {[%emt 0:00:04]} 52. Qd8+ {[%emt 0:00:06]}
Kb7 {[%emt 0:00:04]} 53. Qd7+ {[%emt 0:00:34]} Kb8 {[%emt 0:00:31]} 54. Qd8+ {
[%emt 0:00:02]} Kb7 {[%emt 0:00:06]} 55. Rd7+ {[%emt 0:00:23]} Ka6 {[%emt 0:00:
40]} 56. Qc8+ {[%emt 0:01:11]} 1/2-1/2

[Event "36th European Club Cup 2021"]
[Site "Struga"]
[Date "2021.09.21"]
[Round "4.52"]
[White "Tadic, Stefan"]
[Black "Olivier, Pierre"]
[Result "1-0"]
[ECO "C00"]
[WhiteElo "2339"]
[BlackElo "2215"]
[Annotator "ChessBase"]
[PlyCount "121"]
[EventDate "2021.09.18"]
[EventType "team-tourn"]
[EventCountry "MKD"]
[SourceTitle "playchess.com"]
[Source "ChessBase"]
[SourceQuality "1"]
[TimeControl "40/5400+30:1800+30"]

1. e4 {[%emt 0:00:03]} e6 {[%emt 0:00:04]} 2. d3 {[%emt 0:00:25]} d5 {[%emt 0:
00:51]} 3. Nd2 {[%emt 0:00:05]} Nf6 {[%emt 0:01:17]} 4. g3 {[%emt 0:00:12]} Nc6
{[%emt 0:02:05]} 5. Bg2 {[%emt 0:00:12]} Bc5 {[%emt 0:05:57]} 6. Ngf3 {[%emt 0:
13:01]} dxe4 {[%emt 0:03:18]} 7. dxe4 {[%emt 0:00:26]} O-O {[%emt 0:01:08]} 8.
O-O {[%emt 0:00:29]} e5 {[%emt 0:00:20]} 9. c3 {[%emt 0:06:37]} a5 {[%emt 0:00:
37]} 10. h3 {[%emt 0:26:59]} Re8 {[%emt 0:24:41]} 11. Re1 {[%emt 0:02:08]} b6 {
[%emt 0:20:54]} 12. Nh4 {[%emt 0:03:39]} g6 {[%emt 0:07:41]} 13. Qf3 {[%emt 0:
06:02]} Ba6 {[%emt 0:09:27]} 14. Nf1 {[%emt 0:01:03]} Nd7 {[%emt 0:01:39]} 15.
Ne3 {[%emt 0:05:55]} Qf6 {[%emt 0:06:25]} 16. Nd5 {[%emt 0:16:40]} Qxf3 {
[%emt 0:00:11]} 17. Bxf3 {[%emt 0:00:02]} Bd6 {[%emt 0:00:16]} 18. Bg4 {
[%emt 0:00:30]} Ncb8 {[%emt 0:01:21]} 19. Be3 {[%emt 0:06:07]} h5 {[%emt 0:02:
44]} 20. Bf3 {[%emt 0:00:00]} Bc4 {[%emt 0:01:56]} 21. g4 {[%emt 0:05:00]} Bxd5
{[%emt 0:00:11]} 22. exd5 {[%emt 0:00:01]} hxg4 {[%emt 0:00:37]} 23. hxg4 {
[%emt 0:00:02]} Kg7 {[%emt 0:00:33]} 24. g5 {[%emt 0:00:33]} Rh8 {[%emt 0:02:
06]} 25. Ng2 {[%emt 0:00:01]} f6 {[%emt 0:02:24]} 26. gxf6+ {[%emt 0:00:51]}
Nxf6 {[%emt 0:00:13]} 27. Bg5 {[%emt 0:00:39]} Nbd7 {[%emt 0:00:17]} 28. Ne3 {
[%emt 0:01:37]} Raf8 {[%emt 0:00:46]} 29. Bg2 {[%emt 0:01:29]} Rh5 {[%emt 0:00:
21]} 30. Bxf6+ {[%emt 0:00:05]} Nxf6 {[%emt 0:00:27]} 31. Nc4 {[%emt 0:00:17]}
Nd7 {[%emt 0:00:21]} 32. b4 {[%emt 0:01:39]} axb4 {[%emt 0:00:48]} 33. Nxd6 {
[%emt 0:00:04]} cxd6 {[%emt 0:00:07]} 34. cxb4 {[%emt 0:00:02]} Rh4 {[%emt 0:
00:39]} 35. Reb1 {[%emt 0:02:24]} Rd4 {[%emt 0:00:57]} 36. Rb2 {[%emt 0:02:07]}
e4 {[%emt 0:01:15]} 37. a4 {[%emt 0:00:22]} Ne5 {[%emt 0:02:08]} 38. a5 {
[%emt 0:01:09]} Nf3+ {[%emt 0:01:03]} 39. Kf1 {[%emt 0:00:01]} bxa5 {[%emt 0:
00:39]} 40. bxa5 {[%emt 0:00:00]} Ra8 {[%emt 0:00:00]} 41. Ke2 {[%emt 0:06:10]}
Rxd5 {[%emt 0:06:19]} 42. a6 {[%emt 0:01:13]} Rc5 {[%emt 0:00:08]} 43. Rb7+ {
[%emt 0:01:36]} Kh6 {[%emt 0:00:31]} 44. a7 {[%emt 0:05:51]} Rcc8 {[%emt 0:02:
16]} 45. Bxf3 {[%emt 0:10:24]} exf3+ {[%emt 0:00:31]} 46. Kxf3 {[%emt 0:00:01]}
Kg5 {[%emt 0:02:39]} 47. Ke4 {[%emt 0:00:05]} d5+ {[%emt 0:02:44]} 48. Kxd5 {
[%emt 0:00:23]} Rf8 {[%emt 0:00:32]} 49. Ra6 {[%emt 0:05:59]} Rf5+ {[%emt 0:01:
38]} 50. Kc6 {[%emt 0:00:59]} Rf6+ {[%emt 0:03:38]} 51. Kb5 {[%emt 0:00:01]}
Rf5+ {[%emt 0:00:23]} 52. Kb6 {[%emt 0:00:37]} Rf6+ {[%emt 0:00:15]} 53. Ka5 {
[%emt 0:00:14]} Rxf2 {[%emt 0:03:34]} 54. Rb8 {[%emt 0:01:19]} Ra2+ {[%emt 0:
00:52]} 55. Kb6 {[%emt 0:00:06]} Rxa6+ {[%emt 0:01:06]} 56. Kxa6 {[%emt 0:00:
02]} Rxa7+ {[%emt 0:00:15]} 57. Kxa7 {[%emt 0:00:02]} Kf4 {[%emt 0:01:04]} 58.
Rf8+ {[%emt 0:00:44]} Ke5 {[%emt 0:01:18]} 59. Rg8 {[%emt 0:00:06]} Kf5 {
[%emt 0:00:06]} 60. Kb6 {[%emt 0:00:05]} g5 {[%emt 0:00:32]} 61. Kc5 {[%emt 0:
00:09]} 1-0

[Event "36th European Club Cup 2021"]
[Site "Struga"]
[Date "2021.09.21"]
[Round "4.53"]
[White "Kirszenberg, Marc"]
[Black "Gotovusa, Goran"]
[Result "1/2-1/2"]
[ECO "D31"]
[WhiteElo "2139"]
[BlackElo "2161"]
[Annotator "NA"]
[PlyCount "46"]
[EventDate "2021.09.18"]
[EventType "team-tourn"]
[EventCountry "MKD"]
[SourceTitle "playchess.com"]
[Source "ChessBase"]
[SourceQuality "1"]
[TimeControl "40/5400+30:1800+30"]

1. d4 {[%emt 0:00:03]} d5 {[%emt 0:00:05]} 2. c4 {[%emt 0:00:06]} e6 {[%emt 0:
00:03]} 3. Nc3 {[%emt 0:00:03]} c6 {[%emt 0:00:11]} 4. e4 {[%emt 0:00:05]} dxe4
{[%emt 0:00:16]} 5. Nxe4 {[%emt 0:00:04]} Bb4+ {[%emt 0:00:10]} 6. Nc3 {
[%emt 0:00:05]} c5 {[%emt 0:04:57]} 7. a3 {[%emt 0:00:04]} Bxc3+ {[%emt 0:06:
23]} 8. bxc3 {[%emt 0:00:55]} Nf6 {[%emt 0:01:46]} 9. Be3 {[%emt 1:33:35]} O-O
{[%emt 0:06:07]} 10. Nf3 {[%emt 0:00:00]} Re8 {[%emt 0:10:54]} 11. Be2 {
[%emt 0:00:00]} Nbd7 {[%emt 0:05:51]} 12. O-O {[%emt 0:00:00]} Qa5 {[%emt 0:11:
10]} 13. Qc2 {[%emt 0:00:00]} e5 {[%emt 0:06:18]} 14. h3 {[%emt 0:00:00]} e4 {
[%emt 0:06:28]} 15. Nd2 {[%emt 0:03:00]} Qc7 {[%emt 0:01:31]} 16. Rfe1 {
[%emt 0:00:00]} Nf8 {[%emt 0:07:48]} 17. dxc5 {[%emt 0:00:00]} Bf5 {[%emt 0:05:
30]} 18. Nb3 {[%emt 0:00:00]} Bg6 {[%emt 0:07:42]} 19. Rad1 {[%emt 0:00:00]}
Ne6 {[%emt 0:01:42]} 20. Rd2 {[%emt 0:00:00]} Nd7 {[%emt 0:02:00]} 21. Rd5 {
[%emt 0:00:00]} Nf6 {[%emt 0:00:32]} 22. Rd2 {[%emt 0:00:00]} Nd7 {[%emt 0:01:
20]} 23. Rd5 {[%emt 0:00:00]} Nf6 {[%emt 0:00:58]} 1/2-1/2